Workbook

Sheet Лист1
A1: Школа | C1: ГБОУ "Маскаринская школа- интернат для детей с ограниченными возможностями здоровья" | F1: Утвердил: | G1: должность | H1: директор
A2: Типовое примерное меню приготавливаемых блюд | G2: фамилия | H2: Сабитов Ш. Н.
A3: Возрастная категория | E3: 7-11 лет | G3: дата | H3: 20 | I3: 10 | J3: 2024
H4: день | I4: месяц | J4: год
A5: Неделя | B5: День недели | C5: Прием пищи | D5: Раздел меню | E5: Блюда | F5: Вес блюда, г | G5: Белки | H5: Жиры | I5: Углеводы | J5: Калорийность | K5: № рецептуры | L5: Цена
A6: 1 | B6: 7 | C6: Завтрак | D6: гор.блюдо | E6: Омлет | F6: 200/5 | G6: 16.6 | H6: 18.24 | I6: 2.88 | J6: 200 | K6: 19 | L6: 15.83
D7: гор.напиток | E7: Кофейный напиток из цикория | F7: 200 | G7: 4.32 | H7: 4.6 | I7: 9.6 | J7: 135 | K7: 54 | L7: 9.3
D8: хлеб бел. | E8: Хлеб пшеничный | F8: 120 | G8: 3.1 | H8: 0.2 | I8: 20.1 | J8: 284.1 | K8: 37 | L8: 9.13
D9: масло слив. | E9: Масло слив. | F9: 15 | G9: 0.4 | H9: 62.5 | I9: 0.8 | J9: 205 | K9: 50 | L9: 9.64
D10: кондит.изд. | E10: Вафли | F10: 30 | G10: 1.8 | H10: 7.5 | I10: 14 | J10: 154.2 | K10: 30 | L10: 4.5
D11: фрукты | E11: Апельсин | F11: 100 | G11: 1.4 | H11: 0.3 | I11: 8.1 | J11: 36 | K11: 61 | L11: 12.7
D13: итого | F13: =SUM(F6:F12) -> 465 | G13: =SUM(G6:G12) -> 27.62 | H13: =SUM(H6:H12) -> 93.34 | I13: =SUM(I6:I12) -> 55.48 | J13: =SUM(J6:J12) -> 1014.3 | L13: =SUM(L6:L12) -> 61.1
A14: =A6 -> 1 | B14: =B6 -> 7 | C14: Завтрак 2 | D14: фрукты
D17: итого | F17: =SUM(F14:F16) -> 0 | G17: =SUM(G14:G16) -> 0 | H17: =SUM(H14:H16) -> 0 | I17: =SUM(I14:I16) -> 0 | J17: =SUM(J14:J16) -> 0 | L17: 0
A18: =A6 -> 1 | B18: =B6 -> 7 | C18: Обед | D18: закуска | E18: Винегрет | F18: 100 | G18: 1.57 | H18: 5.18 | I18: 6.7 | J18: 129.23 | K18: 34 | L18: 5
D19: 1 блюдо | E19: Суп картоф с фрикадельками | F19: 250 | G19: 2.1 | H19: 2.15 | I19: 16.5 | J19: 132.75 | K19: 3 | L19: 32.44
D20: 2 блюдо | E20: Картошка печеная | F20: 200 | G20: 5.2 | H20: 1 | I20: 40.8 | J20: 204 | K20: 78 | L20: 4
D21: гарнир | E21: Рыба запеченная | F21: 100 | G21: 13.7 | H21: 6.2 | I21: 4.4 | J21: 153 | K21: 72 | L21: 106.5
D22: напиток | E22: Компот из с/ф | F22: 200 | G22: 4 | H22: 0.06 | I22: 35.2 | J22: 110 | K22: 53 | L22: 2.53
D23: хлеб бел.
D24: хлеб черн. | E24: Хлеб "Дарницкий" | F24: 120 | G24: 2.6 | H24: 0.4 | I24: 17 | J24: 244.8 | K24: 36 | L24: 5.39
D25: фрукты | E25: Банан | F25: 100 | G25: 1.4 | H25: 0.3 | I25: 12.1 | J25: 96.0 | K25: 62 | L25: 15.3
D27: итого | F27: =SUM(F18:F26) -> 1070 | G27: =SUM(G18:G26) -> 30.57 | H27: =SUM(H18:H26) -> 15.29 | I27: =SUM(I18:I26) -> 132.7 | J27: =SUM(J18:J26) -> 1069.78 | L27: =SUM(L18:L26) -> 171.16
A28: =A6 -> 1 | B28: =B6 -> 7 | C28: Полдник | D28: кисломол.
D29: фрукты
D32: итого | F32: =SUM(F28:F31) -> 0 | G32: =SUM(G28:G31) -> 0 | H32: =SUM(H28:H31) -> 0 | I32: =SUM(I28:I31) -> 0 | J32: =SUM(J28:J31) -> 0
A33: =A6 -> 1 | B33: =B6 -> 7 | C33: Ужин | D33: хлеб бел. | E33: Хлеб пшеничный | F33: 160 | G33: 3.1 | H33: 0.2 | I33: 20.1 | J33: 378.8 | K33: 37 | L33: 12.18
D34: гор.напиток | E34: Чай слад. | F34: 200 | G34: 0.1 | H34: 0 | I34: 9.9 | J34: 39.9 | K34: 51 | L34: 1.45
D35: 2 блюдо | E35: Каша перловая мол. | F35: 200/10 | G35: 4.6 | H35: 4.3 | I35: 5.7 | J35: 100 | K35: 64 | L35: 17.53
D36: масло слив. | E36: Масло слив. | F36: 15 | G36: 0.4 | H36: 62.5 | I36: 0.8 | J36: 205 | K36: 50 | L36: 9.64
D37: гарнир | E37: Гуляш из говядины | F37: 100 | G37: 10 | H37: 15.3 | I37: 5.5 | J37: 132.4 | K37: 25 | L37: 20.38
D39: итого | F39: =SUM(F33:F38) -> 475 | G39: =SUM(G33:G38) -> 18.2 | H39: =SUM(H33:H38) -> 82.3 | I39: =SUM(I33:I38) -> 42 | J39: =SUM(J33:J38) -> 856.1 | L39: =SUM(L33:L38) -> 61.18
A40: =A6 -> 1 | B40: =B6 -> 7 | C40: Ужин 2 | D40: кисломол. | E40: Ряженка | F40: 200 | G40: 12 | H40: 2 | I40: 8.4 | J40: 134 | K40: 58 | L40: 20.06
D41: фрукты | E41: Яблоки св. | F41: 100 | G41: 0.6 | H41: 0.6 | I41: 14.3 | J41: 68.6 | K41: 60 | L41: 6.3
D42: напиток
D46: итого | F46: =SUM(F40:F45) -> 300 | G46: =SUM(G40:G45) -> 12.6 | H46: =SUM(H40:H45) -> 2.6 | I46: =SUM(I40:I45) -> 22.7 | J46: =SUM(J40:J45) -> 202.6 | L46: =SUM(L40:L45) -> 26.36
A47: =A6 -> 1 | B47: =B6 -> 7 | C47: Итого за день: | F47: =F13+F17+F27+F32+F39+F46 -> 2310 | G47: =G13+G17+G27+G32+G39+G46 -> 88.99 | H47: =H13+H17+H27+H32+H39+H46 -> 193.53 | I47: =I13+I17+I27+I32+I39+I46 -> 252.88 | J47: =J13+J17+J27+J32+J39+J46 -> 3142.78 | L47: 319.8
